bitfinex-derivatives/quotes_ETHF0:USTF0_20250212
["timestamp","ask_amount","ask_price","bid_price","bid_amount"]
[1739399126360,2.49e-06,2731.1,2731.0,7.65356228]
[1739399126661,27.56673148,2732.5,2731.0,7.65356228]
[1739399126662,0.73207,2731.9,2731.0,6.53715065]
[1739399126857,27.56673148,2732.5,2731.2,3.2078]
[1739399126858,19.187,2732.5,2731.2,3.2078]
[1739399127158,0.73202,2732.1,2731.3,1.83053]
[1739399127364,19.187,2732.5,2731.3,0.7322]
[1739399127562,3.2078,2732.3,2730.9,3.2078]
[1739399127765,0.73219,2731.4,2731.2,0.73224]
[1739399127965,3.2078,2731.4,2730.9,3.2078]
[1739399128169,0.7324,2730.6,2730.5,0.00549249]
[1739399128659,1.83106,2730.6,2729.8,3.2078]
[1739399128861,1.83106,2730.6,2728.5,1.83236]
[1739399128862,19.184,2731.1,2729.1,3.2078]
[1739399129067,0.7326,2729.9,2729.3,0.73274]
[1739399129259,5.03887,2730.6,2729.1,3.2078]
[1739399129454,0.73231,2731.0,2729.9,0.73257]
[1739399129655,19.184,2731.1,2729.7,3.2078]
[1739399129861,0.73244,2730.5,2730.2,0.00549249]
[1739399130071,0.00549249,2730.7,2730.2,0.00549249]
[1739399130369,0.73788249,2730.7,2730.2,0.00549249]
[1739399130869,0.00549249,2730.7,2730.2,0.00549249]
[1739399131367,0.00549249,2730.7,2730.6,0.7324]
[1739399131568,0.00549249,2730.7,2730.2,0.00549249]
[1739399131755,0.00549249,2730.7,2730.6,0.7324]
[1739399131961,0.00549249,2730.7,2730.3,3.2078]
[1739399132156,0.00549249,2730.7,2730.4,0.73243]
[1739399132459,0.00549249,2730.7,2730.5,0.73241]
[1739399132661,5.03806,2731.8,2730.3,3.2078]
[1739399132861,6.54993148,2732.6,2731.1,3.2078]
[1739399133063,3.2078,2732.1,2731.2,1.83058]
[1739399133268,3.2078,2732.7,2731.8,0.73206]
[1739399133563,3.2078,2732.7,2731.4,3.2078]
[1739399133564,3.2078,2732.7,2731.9,0.73205]
[1739399133772,3.2078,2732.7,2731.8,0.73206]
[1739399133965,0.73191,2732.5,2732.0,0.00549249]
[1739399134168,3.9398,2732.1,2732.0,0.00549249]
[1739399134368,3.2078,2732.1,2730.7,3.2078]
[1739399134669,3.2078,2730.8,2730.1,3.94032]
[1739399134870,3.2078,2730.7,2729.8,3.2078]
[1739399135065,0.73244,2730.5,2729.8,3.2078]
[1739399135261,19.184,2730.5,2729.8,3.2078]
[1739399135471,0.73253,2730.2,2729.9,0.00549249]
[1739399135766,0.00549249,2730.4,2729.9,0.00549249]
[1739399135961,3.21329249,2730.4,2729.9,0.00549249]
[1739399136169,3.2078,2730.1,2729.9,0.00549249]
[1739399136367,0.73251,2730.2,2729.9,0.00549249]
[1739399136569,3.2078,2730.0,2729.9,0.00549249]
[1739399136763,3.2078,2730.3,2729.9,0.00549249]
[1739399137069,3.2078,2730.0,2728.4,3.2078]
[1739399137372,6.00549249,2730.4,2728.3,0.733]
[1739399137373,0.73271,2729.5,2728.3,0.733]
[1739399137766,0.00549249,2730.4,2728.6,1.83232]
[1739399137963,3.2078,2730.6,2728.4,3.59031355]
[1739399137964,3.2078,2730.6,2729.0,3.2078]
[1739399138159,0.00549249,2729.8,2729.2,1.83195]
[1739399138367,3.2078,2730.6,2730.2,0.7325]
[1739399138569,19.187,2730.7,2729.7,3.2078]
[1739399139068,19.187,2730.7,2730.0,0.73256]
[1739399139272,19.187,2730.7,2729.4,3.2078]
[1739399139470,3.2078,2730.3,2730.1,0.00549249]
[1739399139975,3.2078,2730.3,2729.1,0.73279]
[1739399139976,0.73255,2730.1,2729.1,0.73279]
[1739399140165,0.73255,2730.1,2729.0,3.2078]
[1739399140469,3.2078,2730.3,2729.3,3.2078]
[1739399140675,3.2078,2730.3,2730.0,0.73254]
[1739399140868,0.00549249,2730.6,2729.9,0.73257]
[1739399141069,0.00549249,2730.6,2729.6,3.2078]
[1739399141274,0.00549249,2730.6,2729.0,1.83206]
[1739399141275,0.00549249,2730.6,2730.0,0.73255]
[1739399141467,0.00549249,2730.6,2729.9,0.73258]
[1739399141774,0.00549249,2730.6,2729.5,3.2078]
[1739399141967,0.00549249,2730.6,2729.9,3.2078]
[1739399142364,0.00549249,2730.6,2730.1,0.73252]
[1739399142677,0.00549249,2730.6,2730.2,3.2078]
[1739399142977,0.00549249,2730.6,2730.5,0.73243]
[1739399143161,0.00549249,2730.6,2730.5,3.94023]
[1739399143361,0.00549249,2730.6,2730.5,3.2078]
[1739399143580,0.00549249,2730.6,2730.5,3.94023]
[1739399143874,0.00549249,2730.6,2730.4,3.2078]
[1739399144068,0.00549249,2730.6,2730.4,3.94024]
[1739399144269,0.00549249,2730.6,2730.4,3.2078]
[1739399144566,0.00549249,2730.6,2730.5,0.73243]
[1739399146668,0.00549249,2730.6,2730.0,3.2078]
[1739399146865,0.00549249,2730.6,2729.7,3.2078]
[1739399147065,0.73247,2730.4,2729.9,0.73258]
[1739399147265,0.00549249,2730.6,2729.4,5.60801]
[1739399147266,0.73245,2730.5,2730.0,3.2078]
[1739399147469,0.73245,2730.5,2729.4,5.60801]
[1739399147470,0.7325,2730.3,2729.5,3.2078]
[1739399147675,0.00549249,2730.6,2729.5,3.2078]
[1739399147981,0.73251,2730.2,2729.6,0.73265]
[1739399148173,0.05763214,2730.1,2729.5,3.2078]
[1739399148374,0.79018214,2730.1,2729.5,3.2078]
[1739399148581,0.05763214,2730.0,2729.6,0.73266]
[1739399148775,0.00549249,2730.6,2729.0,3.2078]
[1739399148776,3.2078,2730.5,2729.0,3.2078]
[1739399148978,0.05763532,2730.4,2729.6,3.2078]
[1739399149174,0.05763532,2730.3,2729.9,0.73259]
[1739399149374,0.00549249,2730.6,2729.8,3.2078]
[1739399149375,0.05763532,2730.2,2729.8,3.2078]
[1739399149671,0.00549249,2730.6,2729.8,3.2078]
[1739399149872,3.2078,2730.4,2729.0,3.2078]
[1739399150077,0.05763622,2730.3,2729.3,3.2078]
[1739399150276,0.79012622,2730.3,2729.3,3.2078]
[1739399150480,0.05763622,2730.2,2729.6,3.2078]
[1739399150668,2.49e-06,2730.6,2730.5,0.73243]
[1739399150869,2.49e-06,2730.6,2730.5,6.73243]
[1739399151274,0.05761553,2731.8,2730.7,1.83088]
[1739399151475,3.2078,2731.9,2731.7,0.73209]
[1739399151780,0.05759826,2731.8,2731.5,0.73214]
[1739399151983,9.75773148,2733.5,2731.5,6.0]
[1739399152175,5.0367,2733.8,2732.4,0.73191]
[1739399152479,0.00549249,2732.8,2732.2,0.00549249]
[1739399152785,0.00549249,2732.8,2732.7,3.2078]
[1739399153480,0.00549249,2732.8,2732.7,3.93964]
[1739399154473,0.00549249,2732.8,2732.7,9.93964]
[1739399154679,3.2078,2733.7,2732.7,3.2078]
[1739399154881,3.2078,2733.7,2733.1,3.2078]
[1739399155184,3.2078,2733.7,2733.1,3.93952]
[1739399155680,0.00549249,2733.7,2733.6,3.2078]
[1739399155982,0.00549249,2733.7,2733.6,3.9394]
[1739399156182,0.00549249,2733.7,2733.6,3.2078]
[1739399156481,0.00549249,2733.7,2733.3,3.2078]
[1739399156685,0.00549249,2733.7,2733.3,3.93946]
[1739399156983,0.00549249,2733.7,2733.3,3.2078]
[1739399157174,0.00549249,2733.7,2733.0,3.2078]
[1739399157373,0.00549249,2733.7,2733.6,3.9394]
[1739399157580,0.07312881,2734.9,2733.6,3.9394]
[1739399157581,0.07312881,2734.9,2733.6,3.2078]
[1739399157881,0.07312881,2734.9,2733.9,3.2078]
[1739399158085,0.07312881,2734.9,2734.7,3.2078]
[1739399158882,0.07312881,2734.9,2734.7,3.93909]
[1739399159188,0.00549249,2735.1,2734.7,3.93909]
[1739399159682,0.00549249,2735.1,2734.5,0.00549249]
[1739399159876,0.00549249,2735.1,2734.6,3.2078]
[1739399160279,0.00549249,2735.1,2734.5,0.00549249]
[1739399161391,0.00549249,2735.1,2734.5,6.00549249]
[1739399161579,0.00549249,2735.1,2734.5,0.00549249]
[1739399161887,0.00549249,2735.1,2734.6,3.2078]
[1739399162182,0.00549249,2735.1,2734.7,0.73129]
[1739399162382,0.00549249,2735.1,2734.5,3.21329249]
[1739399162587,0.00549249,2735.1,2734.6,0.73132]
[1739399162999,0.00549249,2735.1,2734.7,0.73129]
[1739399163288,0.00549249,2735.1,2734.5,3.21329249]
[1739399163491,0.00549249,2735.1,2734.7,0.73128]
[1739399163688,0.00549249,2735.1,2734.8,3.2078]
[1739399164078,0.00549249,2735.1,2734.9,0.73125]
[1739399164287,0.00549249,2735.1,2735.0,0.73122]
[1739399165090,0.00549249,2735.1,2734.8,3.2078]
[1739399165289,0.00549249,2735.1,2734.8,3.93906]
[1739399165586,0.00549249,2735.1,2734.8,3.2078]
[1739399165985,0.00549249,2735.1,2734.9,0.73123]
[1739399166188,0.00549249,2735.1,2734.9,0.73125]
[1739399166484,0.00549249,2735.1,2734.8,3.2078]
[1739399166682,0.00549249,2735.1,2735.0,0.72870914]
[1739399167079,0.00549249,2735.1,2734.8,3.2078]
[1739399167283,0.00549249,2735.1,2734.5,0.00549249]
[1739399167488,0.73670249,2735.1,2734.5,3.94464249]
[1739399167687,0.00549249,2735.1,2734.5,3.21329249]
[1739399167886,2.49e-06,2735.1,2734.5,3.21329249]
[1739399168089,3.2078,2737.0,2735.0,3.2078]
[1739399168387,3.2078,2737.0,2736.5,3.2078]
[1739399168593,0.73062,2737.3,2736.2,3.2078]
[1739399168790,0.7306,2737.4,2736.2,3.2078]
[1739399168989,6.17514631,2737.5,2736.2,3.2078]
[1739399169189,6.17514631,2737.5,2735.4,4.31344631]
[1739399169190,0.00548196,2737.1,2736.8,3.2078]
[1739399169491,0.00548196,2737.1,2737.0,0.73069]
[1739399169688,0.00548196,2737.1,2736.8,3.2078]
[1739399169892,0.00548196,2737.1,2736.9,0.73071]
[1739399170596,0.00548196,2737.1,2736.8,3.2078]
[1739399170784,3.2078,2737.6,2736.8,9.2078]
[1739399170988,19.164,2738.2,2737.2,3.2078]
[1739399171684,19.164,2738.2,2737.4,0.73057]
[1739399171886,3.2078,2738.0,2737.4,3.2078]
[1739399172082,3.2078,2738.0,2737.4,3.93836]
[1739399172280,3.2078,2738.0,2737.4,3.2078]
[1739399172687,0.00548196,2738.1,2737.4,3.2078]
[1739399173087,0.00548196,2738.1,2737.7,0.73049]
[1739399173283,0.00548196,2738.1,2737.4,3.2078]
[1739399173491,0.00548196,2738.1,2737.8,3.2078]
[1739399173693,1.96e-06,2738.1,2737.5,3.2078]
[1739399173900,0.01,2739.3,2737.9,8.06011528]
[1739399174190,0.01,2739.3,2739.2,3.2078]
[1739399174889,0.01,2739.3,2738.9,3.2078]
[1739399175099,0.01,2739.3,2739.2,3.1895155]
[1739399175291,0.01,2739.3,2739.2,3.2078]
[1739399175598,3.2078,2741.0,2739.2,9.2078]
[1739399175789,0.72975,2740.6,2739.6,3.2078]
[1739399176090,20.68320555,2748.3,2739.0,0.00548196]
[1739399176091,4.31344631,2742.8,2741.4,0.72949]
[1739399176295,4.31344631,2742.8,2740.3,4.31344631]
[1739399176497,4.31344631,2742.8,2740.5,3.2078]
[1739399176693,0.72932,2742.2,2741.3,0.00546986]
[1739399177089,4.31344631,2742.3,2741.3,0.00546986]
[1739399177390,0.72946,2741.7,2741.3,0.00546986]
[1739399177591,0.72949,2741.5,2741.3,0.00546986]
[1739399177892,22.3508,2741.6,2741.3,0.00546986]
[1739399178098,3.2078,2742.9,2741.3,10.31891617]
[1739399178395,3.2078,2742.9,2742.3,3.2078]
[1739399178996,19.143,2743.8,2742.3,9.2078]
[1739399178997,3.2078,2743.8,2742.3,9.2078]
[1739399179295,3.2078,2744.1,2742.9,3.2078]
[1739399179596,3.2078,2744.3,2743.7,3.2078]
[1739399179799,3.2078,2746.2,2744.2,7.52124631]
[1739399179991,4.31344631,2746.4,2745.1,3.2078]
[1739399180192,2.26227498,2745.4,2744.7,3.2078]
[1739399180390,2.26227498,2745.8,2745.5,0.00545901]
[1739399180590,5.05,2746.7,2745.7,3.2078]
[1739399180797,2.24356703,2745.6,2745.5,0.00545901]
[1739399181295,3.2078,2747.1,2745.5,6.00545901]
[1739399181490,0.72782,2747.8,2746.3,0.01870795]
[1739399181686,1.974,2748.0,2746.3,0.01870795]
[1739399181891,6.44478639,2750.5,2747.5,3.2078]
[1739399182095,3.2078,2749.7,2749.0,0.0374159]
[1739399182495,3.2078,2749.4,2749.0,0.0374159]
[1739399182692,0.72745,2749.2,2749.1,0.00545901]
[1739399182893,19.118,2749.2,2747.3,3.2078]
[1739399183094,3.2078,2748.8,2747.8,3.2078]
[1739399183296,3.2078,2748.8,2748.0,3.2078]
[1739399183490,19.84547,2749.2,2748.4,3.2078]
[1739399183693,0.72747,2749.1,2748.4,3.2078]
[1739399183898,0.72747,2749.1,2745.9,11.15197447]
[1739399183899,3.2078,2748.8,2748.1,3.2078]
[1739399184202,3.2078,2748.9,2746.7,3.2078]
[1739399184405,6.44478639,2748.1,2746.1,3.2078]
[1739399184595,3.2078,2748.6,2747.8,3.2078]
[1739399185096,6.44478639,2750.5,2748.5,3.2078]
[1739399185300,3.2078,2750.8,2749.4,3.2078]
[1739399185500,0.00545901,2749.8,2749.2,0.00545901]
[1739399185697,3.2078,2752.1,2749.7,3.2078]
[1739399185996,3.2078,2752.1,2750.6,3.2078]
[1739399186197,1.914,2752.9,2749.8,3.2078]
[1739399186198,6.44478639,2751.7,2749.8,3.2078]
[1739399186398,3.2078,2751.5,2749.5,3.2078]
[1739399186603,19.105,2751.6,2748.5,3.2078]
[1739399186604,3.2078,2750.3,2748.5,3.2078]
[1739399186990,0.00538254,2750.8,2750.2,0.00545901]
[1739399187200,0.00538254,2750.8,2750.2,9.01e-06]
[1739399187201,0.72715,2750.3,2750.2,9.01e-06]
[1739399187403,3.21318254,2750.8,2748.9,3.2078]
[1739399187404,6.44478639,2750.5,2748.9,3.2078]
[1739399187699,3.2078,2750.0,2748.2,3.2078]
[1739399187906,3.2078,2750.0,2748.4,3.2078]
[1739399188103,19.09,2749.9,2748.4,3.2078]
[1739399188399,0.72739,2749.4,2748.9,0.00545901]
[1739399188606,0.72743,2749.3,2748.9,0.00545901]
[1739399188901,0.00545901,2749.5,2749.0,3.2078]
[1739399189102,0.00545901,2749.5,2749.1,3.2078]
[1739399189296,0.00545901,2749.5,2748.9,0.00545901]
[1739399191209,0.00545901,2749.5,2748.9,6.00545901]
[1739399191400,3.2078,2751.5,2749.4,3.2078]
[1739399191698,0.72681,2751.6,2750.8,3.2078]
[1739399191906,6.44478639,2751.7,2750.2,3.2078]
[1739399192107,3.2078,2751.4,2749.7,3.2078]
[1739399192303,6.44478639,2750.5,2749.2,3.2078]
[1739399192510,6.44478639,2750.5,2748.9,3.2078]
[1739399192511,3.2078,2750.3,2748.9,3.2078]
[1739399192800,20.9465,2750.4,2749.6,9.01e-06]
[1739399193003,3.93511,2749.7,2749.6,9.01e-06]
[1739399193304,0.72731,2749.7,2749.6,9.01e-06]
[1739399193804,9.93511,2749.7,2749.6,9.01e-06]
[1739399194001,0.72737,2749.5,2747.6,3.2078]
[1739399194193,0.72765,2748.5,2747.6,3.2078]
[1739399194394,6.44478639,2749.0,2747.6,3.2078]
[1739399194703,3.2078,2749.3,2747.6,3.2078]
[1739399194907,6.44478639,2749.6,2748.0,3.2078]
[1739399195400,0.00545901,2748.7,2748.2,0.00545901]
[1739399196110,10.38026639,2748.3,2748.2,9.01e-06]
[1739399196309,9.65258639,2748.3,2746.5,3.2078]
[1739399196602,3.2078,2746.7,2746.1,3.2078]
[1739399196803,19.076,2746.7,2745.6,3.2078]
[1739399197003,19.076,2746.7,2743.9,0.27287921]
[1739399197004,6.44478639,2746.4,2744.6,3.2078]
[1739399197602,6.644813,2777.2,2745.7,9.65258639]
[1739399197603,0.00545901,2745.8,2745.7,9.65258639]
[1739399197805,9.65258639,2748.8,2745.7,9.65258639]
[1739399198010,3.2078,2748.8,2748.2,3.2078]
[1739399198205,26.1249,2749.3,2747.6,3.2078]
[1739399198505,26.1249,2749.3,2746.3,6.44478639]
[1739399198506,9.65258639,2747.7,2743.4,3.2078]
[1739399198708,6.44478639,2744.9,2743.7,3.2078]
[1739399199303,6.44478639,2744.9,2744.0,0.00545901]
[1739399199602,3.2078,2745.0,2744.0,0.00545901]
[1739399199603,6.44478639,2744.3,2744.0,0.00545901]
[1739399199811,6.44478639,2744.3,2741.4,0.3648]
[1739399199812,6.44478639,2744.3,2742.9,3.2078]
[1739399200113,3.8511,2745.4,2742.1,3.2078]
[1739399200114,6.44478639,2743.7,2742.1,3.2078]
[1739399200404,0.72899,2743.4,2742.1,3.2078]
[1739399200809,6.44478639,2743.7,2742.1,3.2078]
[1739399201117,0.00545901,2743.0,2742.7,3.2078]
[1739399202013,0.00545901,2743.0,2742.5,0.00545901]
[1739399202814,0.00545901,2743.0,2742.7,3.2078]
[1739399203009,0.00545901,2743.0,2742.5,0.00545901]
[1739399203216,0.00545901,2743.0,2742.9,0.72911]
[1739399203615,0.00545901,2743.0,2742.9,6.0]
[1739399204303,6.44478639,2744.3,2742.9,6.0]
[1739399204518,7.17337639,2744.9,2743.3,3.2078]
[1739399204713,7.17337639,2744.9,2744.3,3.2078]
[1739399205109,6.44478639,2744.9,2744.8,3.2078]
[1739399205310,6.44478639,2745.5,2744.4,3.2078]
[1739399205507,3.2078,2745.9,2744.7,3.2078]
[1739399205710,0.00546926,2745.1,2744.7,3.2078]
[1739399206109,3.2078,2747.1,2744.8,4.6832145]
[1739399206312,3.2078,2747.1,2745.4,3.2078]
[1739399207216,3.2078,2746.7,2745.1,3.2078]
[1739399207414,0.00539745,2746.5,2746.0,0.00546926]
[1739399207610,3.2078,2746.1,2746.0,9.26e-06]
[1739399207806,22.2928,2746.1,2746.0,9.26e-06]
[1739399208016,28.2928,2746.1,2744.5,3.2078]
[1739399208215,6.44478639,2744.9,2743.5,3.2078]
[1739399208513,6.44478639,2744.9,2743.6,3.2078]
[1739399209224,0.00546926,2744.5,2744.0,0.00546926]
[1739399209521,0.7288,2744.1,2744.0,0.00546926]
[1739399209714,19.088,2744.4,2743.0,3.2078]
[1739399209915,6.44478639,2743.1,2741.4,0.51645386]
[1739399210216,3.2078,2743.4,2742.3,3.2078]
[1739399210418,3.2078,2743.4,2741.5,4.66939157]
[1739399210713,3.2078,2742.6,2741.1,3.2078]
[1739399210918,3.2078,2741.2,2740.6,0.51645386]
[1739399211118,1.8955,2744.0,2739.1,0.51645386]
[1739399211119,3.2078,2740.8,2739.1,0.51645386]
[1739399211316,3.2078,2740.4,2739.1,0.51645386]
[1739399211520,22.2958,2740.7,2738.5,9.65258639]
[1739399211718,0.00546926,2740.0,2739.5,0.00546926]
[1739399212023,0.00546926,2740.0,2739.5,0.73548926]
[1739399212415,9.26e-06,2740.0,2739.5,6.00546926]
[1739399212715,9.26e-06,2740.0,2739.9,0.72991]
[1739399213219,9.26e-06,2740.0,2739.9,6.72991]
[1739399214414,3.2078,2740.9,2739.9,6.0]
[1739399214615,22.3058,2741.9,2740.3,6.44478639]
[1739399214815,3.2078,2741.9,2740.9,0.72965]
[1739399215013,3.2078,2743.3,2740.9,6.44478639]
[1739399215219,3.2078,2742.9,2741.5,6.44478639]
[1739399215916,0.00546926,2742.5,2741.9,0.73483926]
[1739399216118,0.00546926,2742.5,2741.9,0.00546926]
[1739399216325,0.00546926,2742.5,2742.0,0.72933]
[1739399216619,0.00546926,2742.5,2741.9,0.00546926]
[1739399217218,3.21326926,2742.5,2741.9,0.00546926]
[1739399217621,0.00546926,2742.5,2741.9,6.00546926]
[1739399217824,3.2078,2744.4,2741.9,6.00546926]
[1739399218030,3.2078,2745.8,2744.2,6.44478639]
[1739399218223,3.2078,2745.8,2744.2,9.65258639]
[1739399218525,0.72834,2745.9,2744.8,0.7286]
[1739399218726,0.72836,2745.8,2744.8,0.7286]
[1739399218924,0.72841,2745.6,2744.5,0.72869]
[1739399219222,0.72841,2745.6,2744.2,6.44478639]
[1739399219223,0.00536261,2745.6,2745.0,0.00545881]
[1739399219431,0.72853,2745.1,2745.0,0.00545881]
[1739399219619,3.93633,2745.1,2745.0,0.00545881]
[1739399219819,9.93633,2745.1,2745.0,8.81e-06]
[1739399220324,9.2078,2745.1,2743.0,6.44478639]
[1739399220525,3.2078,2744.3,2743.0,9.65258639]
[1739399220825,3.2078,2745.3,2743.1,4.6805698]
[1739399221025,3.2078,2745.1,2743.0,9.65258639]
[1739399221422,0.72878,2744.2,2743.0,3.2078]
[1739399221626,0.00545881,2744.3,2743.8,0.00545881]
[1739399221931,3.2078,2744.2,2741.9,3.2078]
[1739399222138,3.2078,2744.2,2741.2,6.44478639]
[1739399222139,0.72924,2742.5,2741.4,3.2078]
[1739399222325,8.49248639,2744.1,2741.4,3.2078]
[1739399222326,19.101,2742.9,2741.4,3.2078]
[1739399222627,0.7292,2742.6,2741.4,3.2078]
[1739399222926,3.2078,2742.7,2741.4,3.2078]
[1739399223223,0.00546896,2742.3,2741.7,0.00546896]
[1739399223931,0.00546896,2742.3,2742.0,0.72933]
[1739399224133,0.00546896,2742.3,2741.8,3.2078]
[1739399224434,0.00546896,2742.3,2742.1,0.72932]
[1739399224633,0.00546896,2742.3,2741.7,0.00546896]
[1739399225028,3.2078,2743.8,2741.9,3.2078]
[1739399225246,3.2078,2743.8,2742.2,3.2078]
[1739399225429,0.72893,2743.6,2742.2,3.2078]
[1739399225730,0.72893,2743.6,2742.7,0.72916]
[1739399225932,0.72898,2743.5,2742.5,3.937]
[1739399226129,3.2078,2743.8,2742.5,3.2078]
[1739399226338,0.00546896,2743.3,2743.0,0.72907]
[1739399226732,0.00546896,2743.3,2742.9,0.00546896]
[1739399227245,0.00546896,2743.3,2742.9,6.00546896]
[1739399227449,0.72875,2744.3,2743.6,0.72891]
[1739399227636,3.2078,2744.5,2743.2,3.2078]
[1739399227834,3.2078,2744.9,2743.2,3.2078]
[1739399228144,0.72872,2744.4,2743.7,0.72889]
[1739399228331,3.2078,2744.5,2743.5,3.2078]
[1739399228536,0.00537615,2744.3,2743.5,3.2078]
[1739399228834,0.00537615,2744.3,2744.2,0.72877]
[1739399229038,0.00537615,2744.3,2743.8,3.2078]
[1739399229438,0.00537615,2744.3,2743.5,3.2078]
[1739399229639,0.00537615,2744.3,2743.3,3.2078]
[1739399229840,0.72878,2744.2,2743.3,3.2078]
[1739399230041,0.00537615,2744.3,2743.9,3.2078]
[1739399230234,0.00537615,2744.3,2744.0,0.72881]
[1739399230438,0.00537615,2744.3,2743.9,3.2078]
[1739399230640,0.72886,2743.9,2743.4,3.2078]
[1739399230836,0.00537615,2744.3,2743.2,3.2078]
[1739399231051,0.72881,2744.1,2743.5,0.72894]
[1739399231247,0.72884,2744.0,2743.4,0.72898]
[1739399231453,0.72882,2744.1,2743.2,3.2078]
[1739399231644,0.00537615,2744.3,2743.2,3.2078]
[1739399231848,0.72878,2744.2,2743.6,0.72892]
[1739399232142,6.15e-06,2744.3,2743.7,3.2078]
[1739399232337,3.2078,2746.4,2744.3,6.44478639]
[1739399233042,0.72854,2745.1,2744.2,3.2078]
[1739399233250,3.2078,2745.8,2744.0,0.72881]
[1739399233449,0.72865,2744.7,2744.4,0.00546896]
[1739399233641,3.2078,2744.5,2744.4,0.00546896]
[1739399234040,0.72865,2744.7,2744.4,0.00546896]
[1739399234245,3.2078,2745.0,2744.4,0.00546896]
[1739399234441,3.93638,2745.0,2744.4,0.00546896]
[1739399234647,3.2078,2745.0,2744.4,0.00546896]
[1739399234942,3.2078,2745.6,2745.0,0.72854]
[1739399235139,1.945,2746.3,2744.5,3.2078]
[1739399235140,3.2078,2746.1,2744.5,3.2078]
[1739399235340,3.2078,2745.8,2744.5,3.2078]
[1739399235543,3.2078,2745.8,2745.4,3.2078]
[1739399235744,3.2078,2745.8,2744.8,1.82153]
[1739399236050,3.2078,2745.8,2745.4,0.72845]
[1739399236251,3.2078,2745.8,2744.8,1.82153]
[1739399236551,3.2078,2745.8,2744.7,3.2078]
[1739399236741,3.2078,2745.8,2744.4,0.00546896]
[1739399237046,0.72849,2745.3,2744.7,0.72861]
[1739399237247,0.72851,2745.2,2744.6,0.72865]
[1739399237552,3.2078,2745.8,2744.6,1.82166]
[1739399237751,0.72839,2745.7,2745.1,0.72853]
[1739399237947,3.2078,2745.8,2745.3,3.2078]
[1739399238148,1.945,2746.3,2745.3,3.2078]
[1739399238348,0.72826,2746.2,2745.6,0.72839]
[1739399238543,2.67323,2746.3,2745.3,3.2078]
[1739399238744,1.945,2746.3,2745.3,3.2078]
[1739399239143,2.67323,2746.3,2745.7,0.72835]
[1739399239348,1.945,2746.3,2745.3,3.2078]
[1739399239550,3.2078,2746.6,2745.6,3.2078]
[1739399239846,3.2078,2746.6,2744.8,6.44478639]
[1739399239847,3.2078,2747.4,2746.2,3.2078]
[1739399240052,3.2078,2747.4,2746.9,0.72804]
[1739399240254,0.0100806,2746.0,2745.9,3.93612]
[1739399240653,6e-07,2746.0,2745.9,9.93612]
[1739399240859,3.2078,2748.6,2745.9,13.93400996]
[1739399241158,3.2078,2748.6,2746.5,3.2078]
[1739399241347,0.72785,2747.7,2747.1,0.72799]
[1739399241551,3.2078,2748.6,2746.5,3.2078]
[1739399241747,3.2078,2748.3,2747.1,0.73344822]
[1739399241953,0.72781,2747.9,2747.2,0.72796]
[1739399242258,0.72781,2747.9,2747.1,0.00545822]
[1739399242259,0.72783,2747.8,2747.1,0.73344822]
[1739399242452,0.72742,2749.3,2747.6,1.81964]
[1739399242655,3.2078,2749.7,2747.6,1.81964]
[1739399242656,0.72749,2749.1,2747.9,3.2078]
[1739399242851,3.2078,2749.7,2748.2,0.73315822]
[1739399243156,0.72749,2749.1,2748.2,0.73315822]
[1739399243455,3.2078,2749.7,2748.2,0.00545822]
[1739399243654,0.72737,2749.5,2748.2,0.00545822]
[1739399243855,3.93512,2749.7,2748.7,3.2078]
[1739399244064,3.2078,2749.7,2748.7,3.2078]
[1739399244254,3.2078,2749.4,2748.4,3.2078]
[1739399244459,3.2078,2749.1,2748.2,0.00545822]
[1739399244963,5.1295,2749.8,2748.7,3.2078]
[1739399245258,0.72735,2749.6,2748.7,0.72756]
[1739399245459,0.72735,2749.6,2748.4,3.2078]
[1739399245762,19.083,2749.9,2748.2,0.00545822]
[1739399245763,19.083,2749.9,2749.0,3.2078]
[1739399245958,0.72717,2750.3,2749.4,0.72737]
[1739399246154,0.72717,2750.3,2749.3,3.2078]
[1739399246155,3.2078,2750.5,2749.3,3.2078]
[1739399246351,3.2078,2750.5,2749.8,0.72728]
[1739399246554,19.80307,2750.7,2749.7,0.7273]
[1739399246760,19.80307,2750.7,2749.6,0.00545822]
[1739399246761,19.076,2750.7,2749.6,0.00545822]
[1739399246962,19.076,2750.7,2749.7,0.72729]
[1739399247263,3.2078,2750.2,2749.7,0.72729]
[1739399247457,19.076,2750.7,2749.7,0.72729]
[1739399247663,19.076,2750.7,2749.6,0.73277822]
[1739399247956,19.076,2750.7,2749.6,0.00545822]
[1739399247957,3.2078,2750.6,2749.6,0.00545822]
[1739399248559,3.2078,2750.0,2749.6,0.00545822]
[1739399248757,3.2078,2749.7,2748.1,0.72774]
[1739399248958,3.2078,2749.3,2748.0,3.2078]
[1739399249162,1.9557,2749.9,2748.3,3.2078]
[1739399249163,3.2078,2749.6,2748.3,3.2078]
[1739399249359,3.2078,2749.6,2748.6,3.2078]
[1739399249667,3.2078,2749.6,2748.4,0.72763]
[1739399249867,0.0054224,2749.4,2748.8,0.00545822]
[1739399250558,0.72747,2749.2,2748.8,0.00545822]
[1739399251067,19.066,2749.2,2748.8,0.00545822]
[1739399251463,19.79347,2749.2,2748.8,0.00545822]
[1739399251666,19.066,2749.2,2748.8,0.00545822]
[1739399251971,0.7275,2749.0,2748.8,0.00545822]
[1739399252263,0.0054224,2749.4,2748.8,0.00545822]
[1739399252470,0.0054224,2749.4,2749.3,0.72742]
[1739399252866,0.0054224,2749.4,2749.2,0.72743]
[1739399253359,0.0054224,2749.4,2748.8,3.21325822]
[1739399253557,3.2132224,2749.4,2748.8,0.00545822]
[1739399253966,0.72746,2749.2,2748.8,0.00545822]
[1739399254269,3.2078,2749.0,2748.8,0.00545822]
[1739399254464,0.72752,2748.9,2748.8,0.00545822]
[1739399254669,9.2078,2749.0,2747.5,3.2078]
[1739399254874,0.72762,2748.6,2747.8,0.7278]
[1739399255168,3.2078,2748.4,2747.2,3.2078]
[1739399255469,3.2078,2748.8,2747.6,1.81966]